[Event "*** SCC Grand Prix: Titled Tuesday Blitz"]
[Site "Chess.com"]
[Date "2020.10.06"]
[Round "4"]
[White "Irishchessman16"]
[Black "Sanyura"]
[Result "0-1"]
[WhiteElo "2333"]
[BlackElo "2541"]
[TimeControl "180+1"]
[EndTime "10:37:52 PDT"]
[Termination "Sanyura won by resignation"]

1. e4 {[%clk 0:02:53.8]} 1... c6 {[%clk 0:02:49.3]} 2. d4 {[%clk 0:02:51.6]}
2... d5 {[%clk 0:02:49.4]} 3. e5 {[%clk 0:02:52.2]} 3... Bf5 {[%clk 0:02:49]} 4.
c4 {[%clk 0:02:50.7]} 4... e6 {[%clk 0:02:48.5]} 5. h4 {[%clk 0:02:50.7]} 5...
h5 {[%clk 0:02:48.1]} 6. Nc3 {[%clk 0:02:49.2]} 6... Ne7 {[%clk 0:02:41.7]} 7.
Nge2 {[%clk 0:02:47]} 7... dxc4 {[%clk 0:02:24.7]} 8. Ng3 {[%clk 0:02:46.4]}
8... Bg4 {[%clk 0:02:17.4]} 9. f3 {[%clk 0:02:35.1]} 9... Bf5 {[%clk 0:02:04.4]}
10. Bxc4 {[%clk 0:02:33.4]} 10... Nd7 {[%clk 0:01:57.4]} 11. O-O {[%clk
0:02:16.4]} 11... Qb6 {[%clk 0:01:43.6]} 12. Na4 {[%clk 0:02:00.2]} 12... Qc7
{[%clk 0:01:11.2]} 13. Bb3 {[%clk 0:01:58.5]} 13... O-O-O {[%clk 0:01:06.2]} 14.
Bf4 {[%clk 0:01:53.5]} 14... Nb6 {[%clk 0:00:58.8]} 15. Nc5 {[%clk 0:01:48]}
15... Ng6 {[%clk 0:00:56.3]} 16. Bg5 {[%clk 0:01:42.4]} 16... Bxc5 {[%clk
0:00:54.1]} 17. Bxd8 {[%clk 0:01:40.8]} 17... Rxd8 {[%clk 0:00:55]} 18. Nxf5
{[%clk 0:01:40.9]} 18... exf5 {[%clk 0:00:53.8]} 19. dxc5 {[%clk 0:01:38.9]}
19... Rxd1 {[%clk 0:00:53.1]} 20. Raxd1 {[%clk 0:01:33.1]} 20... Nd7 {[%clk
0:00:46.6]} 21. Bxf7 {[%clk 0:01:30.7]} 21... Ndxe5 {[%clk 0:00:43.6]} 22. Be6+
{[%clk 0:01:28.7]} 22... Kb8 {[%clk 0:00:43.3]} 23. Rfe1 {[%clk 0:01:25.4]}
23... a5 {[%clk 0:00:36]} 24. Bxf5 {[%clk 0:01:23.7]} 24... Nxf3+ {[%clk
0:00:33.1]} 25. gxf3 {[%clk 0:01:13.3]} 25... Qg3+ {[%clk 0:00:32.4]} 26. Kh1
{[%clk 0:01:08.7]} 26... Nxh4 {[%clk 0:00:27.6]} 27. Re8+ {[%clk 0:00:57]} 27...
Ka7 {[%clk 0:00:26.9]} 28. Rd2 {[%clk 0:00:53.2]} 28... Qxf3+ {[%clk 0:00:26.6]}
29. Kg1 {[%clk 0:00:52.1]} 29... Qxf5 {[%clk 0:00:26.4]} 30. Rdd8 {[%clk
0:00:49.7]} 30... Qxc5+ {[%clk 0:00:25.8]} 31. Kh1 {[%clk 0:00:48.4]} 31... Nf3
{[%clk 0:00:25]} 0-1

[Event "*** SCC Grand Prix: Titled Tuesday Blitz"]
[Site "Chess.com"]
[Date "2020.10.06"]
[Round "4"]
[White "Borsuk_Konstantin"]
[Black "LiamVrolijk"]
[Result "0-1"]
[WhiteElo "2550"]
[BlackElo "2821"]
[TimeControl "180+1"]
[EndTime "10:37:55 PDT"]
[Termination "LiamVrolijk won by resignation"]

1. d4 {[%clk 0:03:00.9]} 1... Nf6 {[%clk 0:03:00]} 2. c4 {[%clk 0:03:01.4]} 2...
e6 {[%clk 0:03:00.4]} 3. Nc3 {[%clk 0:03:02]} 3... Bb4 {[%clk 0:02:59.9]} 4. Qc2
{[%clk 0:03:02.3]} 4... O-O {[%clk 0:02:57.9]} 5. a3 {[%clk 0:03:02.2]} 5...
Bxc3+ {[%clk 0:02:56.6]} 6. Qxc3 {[%clk 0:03:03.1]} 6... d6 {[%clk 0:02:56.3]}
7. f3 {[%clk 0:03:00.3]} 7... b6 {[%clk 0:02:54.7]} 8. e4 {[%clk 0:02:57.9]}
8... c5 {[%clk 0:02:55.2]} 9. d5 {[%clk 0:02:51.5]} 9... b5 {[%clk 0:02:54.4]}
10. dxe6 {[%clk 0:02:47.5]} 10... Bxe6 {[%clk 0:02:47.8]} 11. cxb5 {[%clk
0:02:46.3]} 11... a6 {[%clk 0:02:47.1]} 12. bxa6 {[%clk 0:02:38.1]} 12... Qb6
{[%clk 0:02:42.1]} 13. Bg5 {[%clk 0:02:33.2]} 13... Nfd7 {[%clk 0:02:32.9]} 14.
Rd1 {[%clk 0:02:19.6]} 14... Nxa6 {[%clk 0:02:24.6]} 15. Ne2 {[%clk 0:02:17.7]}
15... Nc7 {[%clk 0:02:17.8]} 16. Ng3 {[%clk 0:02:03.9]} 16... Rfb8 {[%clk
0:02:10.9]} 17. Rd2 {[%clk 0:01:56.9]} 17... d5 {[%clk 0:02:06.6]} 18. Bf4
{[%clk 0:01:26.1]} 18... d4 {[%clk 0:02:05.2]} 19. Qc1 {[%clk 0:01:25.5]} 19...
Rc8 {[%clk 0:01:56.7]} 20. Bc4 {[%clk 0:01:23.3]} 20... Bxc4 {[%clk 0:01:51.2]}
21. Qxc4 {[%clk 0:01:22.3]} 21... Ne6 {[%clk 0:01:52.1]} 22. Ne2 {[%clk
0:01:11.4]} 22... Nxf4 {[%clk 0:01:38.2]} 23. Nxf4 {[%clk 0:01:11]} 23... Ne5
{[%clk 0:01:39.1]} 24. Qd5 {[%clk 0:01:08]} 24... Re8 {[%clk 0:01:28.6]} 25. O-O
{[%clk 0:00:36.7]} 25... Rad8 {[%clk 0:01:26.8]} 26. Qa2 {[%clk 0:00:35.7]}
26... c4 {[%clk 0:01:15.4]} 27. Kh1 {[%clk 0:00:35.3]} 27... Qh6 {[%clk
0:01:08.7]} 28. g3 {[%clk 0:00:34.5]} 28... d3 {[%clk 0:01:07.8]} 29. Qa1 {[%clk
0:00:28.5]} 29... g5 {[%clk 0:00:49.6]} 30. Nd5 {[%clk 0:00:27.9]} 30... g4
{[%clk 0:00:49.3]} 31. fxg4 {[%clk 0:00:20.4]} 31... Qxd2 {[%clk 0:00:46.4]} 0-1

[Event "*** SCC Grand Prix: Titled Tuesday Blitz"]
[Site "Chess.com"]
[Date "2020.10.06"]
[Round "4"]
[White "Alexandercs432"]
[Black "IMAghasiyevKamal"]
[Result "0-1"]
[WhiteElo "2151"]
[BlackElo "2500"]
[TimeControl "180+1"]
[EndTime "10:37:55 PDT"]
[Termination "IMAghasiyevKamal won by checkmate"]

1. e4 {[%clk 0:03:00.9]} 1... e5 {[%clk 0:02:58.5]} 2. Nf3 {[%clk 0:03:00.8]}
2... Nc6 {[%clk 0:02:58.9]} 3. Bb5 {[%clk 0:03:01]} 3... a6 {[%clk 0:02:59]} 4.
Ba4 {[%clk 0:03:01.5]} 4... Nf6 {[%clk 0:02:59.3]} 5. O-O {[%clk 0:03:01.2]}
5... Be7 {[%clk 0:02:59.7]} 6. Re1 {[%clk 0:03:01]} 6... b5 {[%clk 0:03:00]} 7.
Bb3 {[%clk 0:03:01.6]} 7... d6 {[%clk 0:02:59.7]} 8. c3 {[%clk 0:03:02]} 8...
O-O {[%clk 0:02:59.7]} 9. h3 {[%clk 0:03:02.5]} 9... Re8 {[%clk 0:02:55.1]} 10.
Ng5 {[%clk 0:03:01.4]} 10... Rf8 {[%clk 0:02:54.1]} 11. Nf3 {[%clk 0:03:01.9]}
11... Bb7 {[%clk 0:02:54]} 12. d4 {[%clk 0:02:59.8]} 12... h6 {[%clk 0:02:52.5]}
13. Nbd2 {[%clk 0:02:57.5]} 13... Re8 {[%clk 0:02:51.1]} 14. d5 {[%clk
0:02:56.1]} 14... Nb8 {[%clk 0:02:45.7]} 15. Bc2 {[%clk 0:02:56.5]} 15... c6
{[%clk 0:02:45.9]} 16. dxc6 {[%clk 0:02:56.1]} 16... Nxc6 {[%clk 0:02:43.8]} 17.
Nf1 {[%clk 0:02:57]} 17... Bf8 {[%clk 0:02:39.3]} 18. Ng3 {[%clk 0:02:56.5]}
18... g6 {[%clk 0:02:39.8]} 19. Be3 {[%clk 0:02:29.9]} 19... Qc7 {[%clk
0:02:36.6]} 20. Qd2 {[%clk 0:02:27.2]} 20... Kh7 {[%clk 0:02:33.1]} 21. a4
{[%clk 0:02:12.6]} 21... b4 {[%clk 0:02:04.3]} 22. c4 {[%clk 0:01:50.4]} 22...
b3 {[%clk 0:01:50.2]} 23. Bxb3 {[%clk 0:01:36.1]} 23... Na5 {[%clk 0:01:50]} 24.
Ba2 {[%clk 0:00:52.9]} 24... Nxe4 {[%clk 0:01:41.4]} 25. Nxe4 {[%clk 0:00:53.8]}
25... Bxe4 {[%clk 0:01:41.5]} 26. Qe2 {[%clk 0:00:26.8]} 26... Bb7 {[%clk
0:01:32.4]} 27. b3 {[%clk 0:00:14.9]} 27... Nc6 {[%clk 0:01:28.3]} 28. Rad1
{[%clk 0:00:12]} 28... a5 {[%clk 0:01:27]} 29. Nh2 {[%clk 0:00:09.4]} 29... f5
{[%clk 0:01:19]} 30. Bb1 {[%clk 0:00:07.3]} 30... Bg7 {[%clk 0:01:16.3]} 31. Nf3
{[%clk 0:00:06.7]} 31... Bf6 {[%clk 0:01:10.5]} 32. Nh2 {[%clk 0:00:03.2]} 32...
Nb4 {[%clk 0:01:10]} 33. Bc1 {[%clk 0:00:02.7]} 33... Qc6 {[%clk 0:01:09.7]} 34.
Qd2 {[%clk 0:00:02.7]} 34... Qxg2# {[%clk 0:01:09.2]} 0-1

[Event "*** SCC Grand Prix: Titled Tuesday Blitz"]
[Site "Chess.com"]
[Date "2020.10.06"]
[Round "4"]
[White "Nikolaj_6"]
[Black "GukeshDommaraju"]
[Result "0-1"]
[WhiteElo "2542"]
[BlackElo "2797"]
[TimeControl "180+1"]
[EndTime "10:37:57 PDT"]
[Termination "GukeshDommaraju won by resignation"]

1. e4 {[%clk 0:03:00.9]} 1... c5 {[%clk 0:02:58.6]} 2. Nf3 {[%clk 0:03:01.2]}
2... Nc6 {[%clk 0:02:57.2]} 3. d4 {[%clk 0:02:59.9]} 3... cxd4 {[%clk
0:02:55.8]} 4. Nxd4 {[%clk 0:03:00.8]} 4... Nf6 {[%clk 0:02:56.2]} 5. Nc3 {[%clk
0:03:01]} 5... e5 {[%clk 0:02:56.6]} 6. Ndb5 {[%clk 0:03:01.1]} 6... d6 {[%clk
0:02:57.2]} 7. Nd5 {[%clk 0:03:00.7]} 7... Nxd5 {[%clk 0:02:57.1]} 8. exd5
{[%clk 0:03:01.6]} 8... Nb8 {[%clk 0:02:57.5]} 9. a4 {[%clk 0:03:01.5]} 9... Be7
{[%clk 0:02:55.2]} 10. Be2 {[%clk 0:03:01.3]} 10... O-O {[%clk 0:02:55]} 11. O-O
{[%clk 0:03:01.5]} 11... Nd7 {[%clk 0:02:55.4]} 12. Kh1 {[%clk 0:03:01.1]} 12...
a6 {[%clk 0:02:53.6]} 13. Na3 {[%clk 0:03:01.2]} 13... a5 {[%clk 0:02:52.9]} 14.
f4 {[%clk 0:02:55.6]} 14... exf4 {[%clk 0:02:48.4]} 15. Bxf4 {[%clk 0:02:54.7]}
15... Nc5 {[%clk 0:02:48.8]} 16. Nc4 {[%clk 0:02:46.1]} 16... f5 {[%clk
0:02:47.7]} 17. c3 {[%clk 0:02:41.3]} 17... b6 {[%clk 0:02:46]} 18. b4 {[%clk
0:02:26.6]} 18... Ne4 {[%clk 0:02:43.8]} 19. Ra3 {[%clk 0:02:20.8]} 19... Ba6
{[%clk 0:02:25.2]} 20. b5 {[%clk 0:02:15.8]} 20... Bb7 {[%clk 0:02:20.5]} 21.
Be3 {[%clk 0:02:15.8]} 21... Nc5 {[%clk 0:02:03.6]} 22. Bxc5 {[%clk 0:02:15.1]}
22... bxc5 {[%clk 0:02:03.4]} 23. Bf3 {[%clk 0:02:04.2]} 23... g5 {[%clk
0:01:57.7]} 24. g4 {[%clk 0:01:57.2]} 24... fxg4 {[%clk 0:01:50.8]} 25. Be4
{[%clk 0:01:50.2]} 25... Rxf1+ {[%clk 0:01:04.5]} 26. Qxf1 {[%clk 0:01:48.6]}
26... Bf6 {[%clk 0:01:04.4]} 27. Qf5 {[%clk 0:01:43.1]} 27... Qe7 {[%clk
0:01:02.8]} 28. Nxd6 {[%clk 0:01:37.6]} 28... Qxd6 {[%clk 0:00:52.4]} 29. Qxh7+
{[%clk 0:01:35.5]} 29... Kf8 {[%clk 0:00:52.7]} 30. Qxb7 {[%clk 0:01:32.4]}
30... Re8 {[%clk 0:00:52.7]} 31. Qh7 {[%clk 0:01:13.9]} 31... Qf4 {[%clk
0:00:45.6]} 32. Ra1 {[%clk 0:00:44.3]} 32... Rxe4 {[%clk 0:00:43.1]} 33. b6
{[%clk 0:00:42.2]} 33... Qf3+ {[%clk 0:00:41.8]} 34. Kg1 {[%clk 0:00:41.8]}
34... Re2 {[%clk 0:00:29.4]} 0-1

[Event "*** SCC Grand Prix: Titled Tuesday Blitz"]
[Site "Chess.com"]
[Date "2020.10.06"]
[Round "4"]
[White "Lion-Al-Messi"]
[Black "RusPakhom"]
[Result "1-0"]
[WhiteElo "2537"]
[BlackElo "2301"]
[TimeControl "180+1"]
[EndTime "10:38:00 PDT"]
[Termination "Lion-Al-Messi won on time"]

1. e4 {[%clk 0:03:00.9]} 1... c5 {[%clk 0:02:59.1]} 2. Nf3 {[%clk 0:03:01.3]}
2... Nc6 {[%clk 0:02:58.7]} 3. d4 {[%clk 0:03:01.8]} 3... cxd4 {[%clk
0:02:59.6]} 4. Nxd4 {[%clk 0:03:02.7]} 4... g6 {[%clk 0:02:59]} 5. c4 {[%clk
0:02:57.5]} 5... Bg7 {[%clk 0:02:57.7]} 6. Be3 {[%clk 0:02:56.9]} 6... Nf6
{[%clk 0:02:56.6]} 7. Nc3 {[%clk 0:02:56.7]} 7... Ng4 {[%clk 0:02:55.4]} 8. Qxg4
{[%clk 0:02:54.6]} 8... Nxd4 {[%clk 0:02:55.5]} 9. Qd1 {[%clk 0:02:54.7]} 9...
Ne6 {[%clk 0:02:54.5]} 10. Qd2 {[%clk 0:02:52.5]} 10... O-O {[%clk 0:02:52.5]}
11. Be2 {[%clk 0:02:51]} 11... b6 {[%clk 0:02:52]} 12. O-O {[%clk 0:02:50.2]}
12... Bb7 {[%clk 0:02:51.5]} 13. Nd5 {[%clk 0:02:50.5]} 13... Rc8 {[%clk
0:02:35.7]} 14. Rac1 {[%clk 0:02:49.2]} 14... Nc5 {[%clk 0:02:33.3]} 15. f3
{[%clk 0:02:47.5]} 15... d6 {[%clk 0:02:32.8]} 16. Rfd1 {[%clk 0:02:46.4]} 16...
Nd7 {[%clk 0:02:21.5]} 17. Bg5 {[%clk 0:02:38.8]} 17... Re8 {[%clk 0:02:21.3]}
18. b3 {[%clk 0:02:26.4]} 18... Ne5 {[%clk 0:02:12.3]} 19. Kh1 {[%clk
0:02:20.4]} 19... Qd7 {[%clk 0:01:56.4]} 20. h3 {[%clk 0:02:09.6]} 20... Nc6
{[%clk 0:01:43.3]} 21. f4 {[%clk 0:02:05.3]} 21... Nd4 {[%clk 0:01:40.8]} 22.
Bg4 {[%clk 0:02:04]} 22... f5 {[%clk 0:01:20.8]} 23. exf5 {[%clk 0:02:03.6]}
23... Nxf5 {[%clk 0:01:21.7]} 24. Re1 {[%clk 0:01:48.4]} 24... e6 {[%clk
0:00:43.2]} 25. Nf6+ {[%clk 0:01:36.7]} 25... Bxf6 {[%clk 0:00:40.9]} 26. Bxf6
{[%clk 0:01:37.6]} 26... Ng3+ {[%clk 0:00:27.5]} 27. Kh2 {[%clk 0:01:37.4]}
27... Ne4 {[%clk 0:00:27.7]} 28. Qb2 {[%clk 0:01:37.5]} 28... Nxf6 {[%clk
0:00:27.7]} 29. Qxf6 {[%clk 0:01:36.9]} 29... Qf7 {[%clk 0:00:06.2]} 30. Bxe6
{[%clk 0:01:34]} 30... Rxe6 {[%clk 0:00:06.3]} 31. Rxe6 {[%clk 0:01:30.1]} 31...
Qxf6 {[%clk 0:00:06.2]} 32. Rxf6 {[%clk 0:01:31]} 32... d5 {[%clk 0:00:04.6]}
33. Rd6 {[%clk 0:01:12.2]} 33... Rc5 {[%clk 0:00:03.3]} 34. Rd8+ {[%clk
0:01:09.5]} 1-0

[Event "*** SCC Grand Prix: Titled Tuesday Blitz"]
[Site "Chess.com"]
[Date "2020.10.06"]
[Round "4"]
[White "nurgyulsalimova"]
[Black "CM_rui"]
[Result "1-0"]
[WhiteElo "2612"]
[BlackElo "2380"]
[TimeControl "180+1"]
[EndTime "10:38:01 PDT"]
[Termination "nurgyulsalimova won on time"]

1. e4 {[%clk 0:03:00.9]} 1... e5 {[%clk 0:02:57.7]} 2. Nf3 {[%clk 0:02:54.4]}
2... Nc6 {[%clk 0:02:58]} 3. d4 {[%clk 0:02:53.8]} 3... exd4 {[%clk 0:02:50.5]}
4. Nxd4 {[%clk 0:02:52.9]} 4... Bc5 {[%clk 0:02:51.1]} 5. Be3 {[%clk 0:02:47.4]}
5... Qf6 {[%clk 0:02:50.8]} 6. c3 {[%clk 0:02:45.6]} 6... Nge7 {[%clk
0:02:34.3]} 7. g3 {[%clk 0:02:17.5]} 7... O-O {[%clk 0:02:29.4]} 8. Bg2 {[%clk
0:02:16.6]} 8... Ne5 {[%clk 0:02:07.1]} 9. O-O {[%clk 0:02:14.7]} 9... N7c6
{[%clk 0:01:59.6]} 10. Nxc6 {[%clk 0:02:09.4]} 10... Qxc6 {[%clk 0:01:55]} 11.
Bxc5 {[%clk 0:02:09.2]} 11... Qxc5 {[%clk 0:01:55.9]} 12. Nd2 {[%clk 0:02:09]}
12... d6 {[%clk 0:01:47]} 13. Nb3 {[%clk 0:01:59.4]} 13... Qb6 {[%clk
0:01:43.8]} 14. Qd4 {[%clk 0:01:53.1]} 14... Be6 {[%clk 0:01:31.5]} 15. Kh1
{[%clk 0:01:13.9]} 15... Bxb3 {[%clk 0:01:17.2]} 16. axb3 {[%clk 0:01:14.8]}
16... Qxb3 {[%clk 0:01:12.6]} 17. f4 {[%clk 0:01:14.6]} 17... Nc6 {[%clk
0:01:08.1]} 18. Qd2 {[%clk 0:01:08.6]} 18... a5 {[%clk 0:00:59.3]} 19. e5 {[%clk
0:00:53]} 19... dxe5 {[%clk 0:00:54]} 20. Bd5 {[%clk 0:00:53]} 20... Qb6 {[%clk
0:00:45.8]} 21. f5 {[%clk 0:00:52.3]} 21... Rad8 {[%clk 0:00:35.1]} 22. f6
{[%clk 0:00:51.1]} 22... Qc5 {[%clk 0:00:06.8]} 23. Qg5 {[%clk 0:00:40.7]} 23...
Qxd5+ {[%clk 0:00:05.2]} 24. Kg1 {[%clk 0:00:40.3]} 24... Qc5+ {[%clk
0:00:02.7]} 25. Rf2 {[%clk 0:00:40.2]} 1-0

[Event "*** SCC Grand Prix: Titled Tuesday Blitz"]
[Site "Chess.com"]
[Date "2020.10.06"]
[Round "4"]
[White "SergeyShtyka"]
[Black "IMJonathanCarlstedt"]
[Result "0-1"]
[WhiteElo "2324"]
[BlackElo "2525"]
[TimeControl "180+1"]
[EndTime "10:38:01 PDT"]
[Termination "IMJonathanCarlstedt won by checkmate"]

1. e4 {[%clk 0:03:00.9]} 1... g6 {[%clk 0:03:00.9]} 2. d4 {[%clk 0:03:00.8]}
2... Bg7 {[%clk 0:03:00.1]} 3. Nc3 {[%clk 0:03:00.9]} 3... d6 {[%clk 0:02:59.1]}
4. Nge2 {[%clk 0:03:00.2]} 4... a6 {[%clk 0:02:58.8]} 5. a4 {[%clk 0:02:59.6]}
5... Nc6 {[%clk 0:02:57.9]} 6. g3 {[%clk 0:02:58.8]} 6... Bg4 {[%clk 0:02:55.3]}
7. Be3 {[%clk 0:02:53.1]} 7... e5 {[%clk 0:02:54.5]} 8. dxe5 {[%clk 0:02:32.6]}
8... Nxe5 {[%clk 0:02:53.1]} 9. Bg2 {[%clk 0:02:32.3]} 9... Bf3 {[%clk 0:02:49]}
10. O-O {[%clk 0:02:30.8]} 10... h5 {[%clk 0:02:46.9]} 11. Bxf3 {[%clk 0:02:28]}
11... Nxf3+ {[%clk 0:02:46.3]} 12. Kg2 {[%clk 0:02:28.4]} 12... Ne5 {[%clk
0:02:40.3]} 13. h3 {[%clk 0:02:26]} 13... Nf6 {[%clk 0:02:32.7]} 14. b3 {[%clk
0:02:22.9]} 14... O-O {[%clk 0:02:31.8]} 15. f4 {[%clk 0:02:22.2]} 15... Nc6
{[%clk 0:02:31.5]} 16. Nd4 {[%clk 0:02:17.7]} 16... Re8 {[%clk 0:02:30.6]} 17.
Nxc6 {[%clk 0:02:15.1]} 17... bxc6 {[%clk 0:02:31.5]} 18. Qd3 {[%clk 0:01:36.4]}
18... Qe7 {[%clk 0:02:23.9]} 19. Kf3 {[%clk 0:01:32.2]} 19... Qe6 {[%clk
0:02:06.4]} 20. Rh1 {[%clk 0:01:26.8]} 20... Re7 {[%clk 0:02:03.5]} 21. Rae1
{[%clk 0:01:26.1]} 21... Rae8 {[%clk 0:02:02.6]} 22. Bd4 {[%clk 0:01:23.8]}
22... c5 {[%clk 0:02:00.8]} 23. Bxf6 {[%clk 0:01:21.3]} 23... Bxf6 {[%clk
0:01:55]} 24. Nd5 {[%clk 0:01:21.1]} 24... Rd7 {[%clk 0:01:55.5]} 25. Qxa6
{[%clk 0:01:05]} 25... Bd4 {[%clk 0:01:44]} 26. Qd3 {[%clk 0:01:03.7]} 26... f5
{[%clk 0:01:32.5]} 27. c3 {[%clk 0:00:56.4]} 27... c6 {[%clk 0:01:04.6]} 28. Nb6
{[%clk 0:00:38.9]} 28... Rde7 {[%clk 0:01:02.7]} 29. exf5 {[%clk 0:00:09.1]}
29... Qe3+ {[%clk 0:01:03.6]} 30. Rxe3 {[%clk 0:00:08.8]} 30... Rxe3+ {[%clk
0:01:04.5]} 31. Qxe3 {[%clk 0:00:09.2]} 31... Rxe3+ {[%clk 0:01:04.9]} 32. Kg2
{[%clk 0:00:09.4]} 32... Rxc3 {[%clk 0:01:05.8]} 33. fxg6 {[%clk 0:00:07.5]}
33... Rxb3 {[%clk 0:01:05.6]} 34. a5 {[%clk 0:00:07.4]} 34... d5 {[%clk
0:01:03]} 35. Rc1 {[%clk 0:00:05.7]} 35... Rb2+ {[%clk 0:01:03.3]} 36. Kf3
{[%clk 0:00:05.5]} 36... Rf2# {[%clk 0:01:03.2]} 0-1

[Event "*** SCC Grand Prix: Titled Tuesday Blitz"]
[Site "Chess.com"]
[Date "2020.10.06"]
[Round "4"]
[White "gagtemp"]
[Black "FramboiseDePrintemps"]
[Result "0-1"]
[WhiteElo "1953"]
[BlackElo "2660"]
[TimeControl "180+1"]
[EndTime "10:38:02 PDT"]
[Termination "FramboiseDePrintemps won on time"]

1. e4 {[%clk 0:03:00.9]} 1... e5 {[%clk 0:02:59.2]} 2. Nf3 {[%clk 0:03:00.5]}
2... Nc6 {[%clk 0:02:59.3]} 3. Bc4 {[%clk 0:02:58.9]} 3... Bc5 {[%clk
0:02:57.9]} 4. O-O {[%clk 0:02:56.3]} 4... Nf6 {[%clk 0:02:58.2]} 5. d3 {[%clk
0:02:55.5]} 5... O-O {[%clk 0:02:57.9]} 6. a4 {[%clk 0:02:53.7]} 6... a6 {[%clk
0:02:54.6]} 7. Re1 {[%clk 0:02:52.8]} 7... h6 {[%clk 0:02:52.7]} 8. c3 {[%clk
0:02:47.3]} 8... d6 {[%clk 0:02:48.8]} 9. Nbd2 {[%clk 0:02:38.9]} 9... Ba7
{[%clk 0:02:45.5]} 10. Nf1 {[%clk 0:02:38.1]} 10... Ne7 {[%clk 0:02:38.1]} 11.
Ng3 {[%clk 0:02:32.5]} 11... c6 {[%clk 0:02:30.8]} 12. d4 {[%clk 0:02:27.9]}
12... Ng6 {[%clk 0:02:26.1]} 13. dxe5 {[%clk 0:02:23]} 13... dxe5 {[%clk
0:02:26]} 14. Qe2 {[%clk 0:02:14.5]} 14... Ng4 {[%clk 0:02:20]} 15. Be3 {[%clk
0:02:02.9]} 15... Nxe3 {[%clk 0:02:17.4]} 16. fxe3 {[%clk 0:02:03]} 16... b5
{[%clk 0:02:05.4]} 17. axb5 {[%clk 0:02:00.1]} 17... axb5 {[%clk 0:02:05.2]} 18.
Bb3 {[%clk 0:01:57.2]} 18... Qf6 {[%clk 0:02:01.8]} 19. Nh5 {[%clk 0:01:44.4]}
19... Qe7 {[%clk 0:01:58.9]} 20. Ng3 {[%clk 0:01:40.3]} 20... Bg4 {[%clk
0:01:52.1]} 21. Kh1 {[%clk 0:01:28.1]} 21... Nh4 {[%clk 0:01:49.6]} 22. Ra6
{[%clk 0:01:18.1]} 22... Qf6 {[%clk 0:01:45.8]} 23. Rf1 {[%clk 0:01:08]} 23...
Bc5 {[%clk 0:01:41.9]} 24. Rxa8 {[%clk 0:01:05.1]} 24... Rxa8 {[%clk 0:01:42.8]}
25. Bc2 {[%clk 0:00:41.3]} 25... Nxf3 {[%clk 0:01:38.7]} 26. gxf3 {[%clk
0:00:39.9]} 26... Be6 {[%clk 0:01:38.8]} 27. f4 {[%clk 0:00:33.6]} 27... exf4
{[%clk 0:01:36.7]} 28. exf4 {[%clk 0:00:33.4]} 28... Bh3 {[%clk 0:01:35.1]} 29.
e5 {[%clk 0:00:29.9]} 29... Bxf1 {[%clk 0:01:34.3]} 30. Qxf1 {[%clk 0:00:27.7]}
30... Qh4 {[%clk 0:01:31.3]} 31. Qd3 {[%clk 0:00:20.3]} 31... Ra1+ {[%clk
0:01:28.6]} 32. Kg2 {[%clk 0:00:19.4]} 32... Rg1+ {[%clk 0:01:26.3]} 33. Kf3
{[%clk 0:00:18.7]} 33... Qxh2 {[%clk 0:01:27]} 34. Qh7+ {[%clk 0:00:17.5]} 34...
Kf8 {[%clk 0:01:27.1]} 35. Qh8+ {[%clk 0:00:17.5]} 35... Ke7 {[%clk 0:01:27.2]}
36. Nf5+ {[%clk 0:00:17.7]} 36... Kd7 {[%clk 0:01:20.5]} 0-1

[Event "*** SCC Grand Prix: Titled Tuesday Blitz"]
[Site "Chess.com"]
[Date "2020.10.06"]
[Round "4"]
[White "salomez"]
[Black "Nara_Kh"]
[Result "0-1"]
[WhiteElo "2195"]
[BlackElo "2383"]
[TimeControl "180+1"]
[EndTime "10:38:02 PDT"]
[Termination "Nara_Kh won on time"]

1. d4 {[%clk 0:03:00.5]} 1... d5 {[%clk 0:02:57]} 2. Bf4 {[%clk 0:02:58.8]} 2...
Nf6 {[%clk 0:02:56.2]} 3. Nf3 {[%clk 0:02:56.6]} 3... c5 {[%clk 0:02:56.3]} 4.
e3 {[%clk 0:02:52.1]} 4... Nc6 {[%clk 0:02:56.5]} 5. Bd3 {[%clk 0:02:46.5]} 5...
Bg4 {[%clk 0:02:53.7]} 6. c3 {[%clk 0:02:43.7]} 6... Qb6 {[%clk 0:02:49.5]} 7.
Qd2 {[%clk 0:02:01.8]} 7... Bxf3 {[%clk 0:02:32.1]} 8. gxf3 {[%clk 0:02:00.8]}
8... e6 {[%clk 0:02:32.5]} 9. O-O {[%clk 0:01:47.4]} 9... g5 {[%clk 0:02:23]}
10. Bg3 {[%clk 0:01:41.9]} 10... h5 {[%clk 0:02:22.8]} 11. e4 {[%clk 0:00:48.2]}
11... h4 {[%clk 0:02:06.5]} 12. Be5 {[%clk 0:00:44.9]} 12... Nxe5 {[%clk
0:01:55.6]} 13. dxe5 {[%clk 0:00:43.1]} 13... Nh5 {[%clk 0:01:56.2]} 14. exd5
{[%clk 0:00:36.4]} 14... exd5 {[%clk 0:01:51.8]} 15. Bf5 {[%clk 0:00:30.7]}
15... Nf4 {[%clk 0:01:50]} 16. Na3 {[%clk 0:00:27.5]} 16... Be7 {[%clk
0:01:36.5]} 17. Rfe1 {[%clk 0:00:26.2]} 17... Kf8 {[%clk 0:01:36.4]} 18. Rab1
{[%clk 0:00:14.3]} 18... Rd8 {[%clk 0:01:35.4]} 19. b4 {[%clk 0:00:13.3]} 19...
d4 {[%clk 0:01:16]} 20. bxc5 {[%clk 0:00:10.4]} 20... Qxc5 {[%clk 0:01:16.3]}
21. Nb5 {[%clk 0:00:09.4]} 21... dxc3 {[%clk 0:00:56.6]} 22. Qxc3 {[%clk
0:00:08.8]} 22... a6 {[%clk 0:00:57]} 23. Qxc5 {[%clk 0:00:04.7]} 23... Bxc5
{[%clk 0:00:57.9]} 24. Nc7 {[%clk 0:00:03.9]} 24... Rd2 {[%clk 0:00:54.2]} 0-1